[Event "***Titled Tuesday 3|2 Blitz"]
[Site "Chess.com"]
[Date "2017.02.07"]
[Round "9"]
[White "olgerts_indricans"]
[Black "salomez"]
[Result "1-0"]
[WhiteElo "2320"]
[BlackElo "2142"]
[TimeControl "180+2"]
[EndTime "15:13:14 PST"]
[Termination "olgerts_indricans won on time"]

1. e4 {[%clk 0:03:02]} 1... c5 {[%clk 0:02:59.8]} 2. Nf3 {[%clk 0:03:02.7]} 2...
e6 {[%clk 0:03:00.4]} 3. b3 {[%clk 0:03:03.4]} 3... Nf6 {[%clk 0:02:59.5]} 4.
Bd3 {[%clk 0:03:01.1]} 4... d5 {[%clk 0:02:58.8]} 5. Nc3 {[%clk 0:02:51.6]} 5...
d4 {[%clk 0:02:54.8]} 6. Ne2 {[%clk 0:02:50.2]} 6... Nc6 {[%clk 0:02:54.6]} 7.
Ng3 {[%clk 0:02:38.6]} 7... Bd6 {[%clk 0:02:51.2]} 8. O-O {[%clk 0:02:32.4]}
8... h5 {[%clk 0:02:50.3]} 9. Bb5 {[%clk 0:02:24.9]} 9... h4 {[%clk 0:02:46.1]}
10. e5 {[%clk 0:02:25.6]} 10... hxg3 {[%clk 0:02:45.5]} 11. fxg3 {[%clk
0:02:17.3]} 11... Be7 {[%clk 0:02:39.2]} 12. exf6 {[%clk 0:02:09.3]} 12... Bxf6
{[%clk 0:02:37]} 13. Bxc6+ {[%clk 0:02:07.5]} 13... bxc6 {[%clk 0:02:37.2]} 14.
d3 {[%clk 0:02:09.4]} 14... O-O {[%clk 0:02:32.3]} 15. Qe2 {[%clk 0:02:06]}
15... Qd5 {[%clk 0:02:24]} 16. Nd2 {[%clk 0:01:55.9]} 16... Bg5 {[%clk
0:02:20.7]} 17. Ne4 {[%clk 0:01:48.7]} 17... Bxc1 {[%clk 0:02:21.3]} 18. Raxc1
{[%clk 0:01:50.6]} 18... f5 {[%clk 0:02:22]} 19. Nd2 {[%clk 0:01:39.7]} 19... e5
{[%clk 0:02:15.1]} 20. Rce1 {[%clk 0:01:39.2]} 20... Re8 {[%clk 0:02:10.7]} 21.
Qh5 {[%clk 0:01:24.8]} 21... Bd7 {[%clk 0:02:06.8]} 22. Nf3 {[%clk 0:01:21.5]}
22... e4 {[%clk 0:00:09.8]} 23. dxe4 {[%clk 0:01:04.4]} 23... fxe4 {[%clk
0:00:09.4]} 24. Ng5 {[%clk 0:00:57.8]} 24... Bf5 {[%clk 0:00:10.4]} 25. g4
{[%clk 0:00:53.6]} 1-0

[Event "***Titled Tuesday 3|2 Blitz"]
[Site "Chess.com"]
[Date "2017.02.07"]
[Round "9"]
[White "Robin-Side"]
[Black "PaulfromSPb"]
[Result "0-1"]
[WhiteElo "2377"]
[BlackElo "2456"]
[TimeControl "180+2"]
[EndTime "15:13:33 PST"]
[Termination "PaulfromSPb won by resignation"]

1. d4 {[%clk 0:02:18.9]} 1... Nf6 {[%clk 0:02:41.6]} 2. Nc3 {[%clk 0:02:19.8]}
2... d5 {[%clk 0:02:41]} 3. e4 {[%clk 0:02:21]} 3... dxe4 {[%clk 0:02:41.8]} 4.
f3 {[%clk 0:02:22.4]} 4... Bf5 {[%clk 0:02:42]} 5. fxe4 {[%clk 0:02:23.5]} 5...
Nxe4 {[%clk 0:02:41.9]} 6. Qf3 {[%clk 0:02:24.6]} 6... Nxc3 {[%clk 0:02:40.6]}
7. bxc3 {[%clk 0:02:26.5]} 7... Bc8 {[%clk 0:02:40.4]} 8. Bc4 {[%clk 0:02:26.8]}
8... e6 {[%clk 0:02:41.5]} 9. Nh3 {[%clk 0:02:28]} 9... Be7 {[%clk 0:02:41]} 10.
O-O {[%clk 0:02:29.2]} 10... O-O {[%clk 0:02:42.2]} 11. Bd3 {[%clk 0:02:29.6]}
11... f5 {[%clk 0:02:42.9]} 12. Bc4 {[%clk 0:02:19.5]} 12... Kh8 {[%clk
0:02:41.4]} 13. Bf4 {[%clk 0:02:06.1]} 13... c5 {[%clk 0:02:39.2]} 14. Rad1
{[%clk 0:02:01.1]} 14... Qb6 {[%clk 0:02:37.6]} 15. Rfe1 {[%clk 0:01:43]} 15...
cxd4 {[%clk 0:02:36.2]} 16. cxd4 {[%clk 0:01:43]} 16... Nc6 {[%clk 0:02:37.3]}
17. c3 {[%clk 0:01:38.2]} 17... Bf6 {[%clk 0:02:34.3]} 18. Bxe6 {[%clk 0:01:36]}
18... Nxd4 {[%clk 0:02:34.6]} 19. cxd4 {[%clk 0:01:08.4]} 19... Bxe6 {[%clk
0:02:34.3]} 20. Be5 {[%clk 0:01:04]} 20... Bxe5 {[%clk 0:02:12.8]} 21. Rxe5
{[%clk 0:01:05.9]} 21... Bxa2 {[%clk 0:02:13.6]} 22. Rxf5 {[%clk 0:01:01.8]}
22... Rxf5 {[%clk 0:02:13.3]} 23. Qxf5 {[%clk 0:01:03.7]} 23... Be6 {[%clk
0:02:13.9]} 24. Qf3 {[%clk 0:01:00.9]} 24... Bxh3 {[%clk 0:02:14.5]} 25. Qxh3
{[%clk 0:01:02.8]} 25... a5 {[%clk 0:02:15.1]} 26. Qd3 {[%clk 0:00:55.8]} 26...
a4 {[%clk 0:02:15.7]} 27. Qa3 {[%clk 0:00:43.4]} 27... h6 {[%clk 0:02:09.9]} 28.
Kh1 {[%clk 0:00:42]} 28... Qb5 {[%clk 0:02:07.6]} 29. d5 {[%clk 0:00:37.7]}
29... Qb3 {[%clk 0:01:59.6]} 30. Qa1 {[%clk 0:00:29]} 30... a3 {[%clk
0:01:57.9]} 31. d6 {[%clk 0:00:30.4]} 31... a2 {[%clk 0:01:56.1]} 32. d7 {[%clk
0:00:25.3]} 32... Rd8 {[%clk 0:01:51.6]} 33. h3 {[%clk 0:00:25.1]} 33... b5
{[%clk 0:01:44.6]} 34. Qd4 {[%clk 0:00:22.9]} 34... b4 {[%clk 0:01:40.3]} 35.
Kh2 {[%clk 0:00:20.7]} 35... Qb1 {[%clk 0:01:37.3]} 36. Qb6 {[%clk 0:00:16]}
36... Rxd7 {[%clk 0:01:30.4]} 37. Rxd7 {[%clk 0:00:17.4]} 37... a1=Q {[%clk
0:01:31.4]} 38. Qd8+ {[%clk 0:00:10.5]} 38... Kh7 {[%clk 0:01:32]} 39. Qe7
{[%clk 0:00:09.3]} 39... Qg1+ {[%clk 0:01:30.1]} 40. Kg3 {[%clk 0:00:10.7]}
40... Qae1+ {[%clk 0:01:29.9]} 41. Kg4 {[%clk 0:00:09.6]} 41... Qxg2+ {[%clk
0:01:30.6]} 0-1

[Event "***Titled Tuesday 3|2 Blitz"]
[Site "Chess.com"]
[Date "2017.02.07"]
[Round "9"]
[White "SavelijTartakover"]
[Black "Jospem"]
[Result "1-0"]
[WhiteElo "2553"]
[BlackElo "2522"]
[TimeControl "180+2"]
[EndTime "15:13:42 PST"]
[Termination "SavelijTartakover won on time"]

1. d4 {[%clk 0:02:56.1]} 1... f5 {[%clk 0:02:53.8]} 2. g3 {[%clk 0:02:55.9]}
2... Nf6 {[%clk 0:02:54.5]} 3. Bg2 {[%clk 0:02:56.5]} 3... g6 {[%clk 0:02:56]}
4. c3 {[%clk 0:02:55.8]} 4... Bg7 {[%clk 0:02:57]} 5. Qb3 {[%clk 0:02:56.4]}
5... e6 {[%clk 0:02:55.6]} 6. Nd2 {[%clk 0:02:53.4]} 6... Nc6 {[%clk 0:02:56.3]}
7. e4 {[%clk 0:02:51.6]} 7... fxe4 {[%clk 0:02:52.7]} 8. Nxe4 {[%clk 0:02:52.9]}
8... Nxe4 {[%clk 0:02:51.6]} 9. Bxe4 {[%clk 0:02:54.8]} 9... O-O {[%clk
0:02:51.2]} 10. Ne2 {[%clk 0:02:54.5]} 10... Kh8 {[%clk 0:02:46.2]} 11. Bg2
{[%clk 0:02:38]} 11... d6 {[%clk 0:02:39.7]} 12. O-O {[%clk 0:02:35.3]} 12... e5
{[%clk 0:02:38.7]} 13. Be3 {[%clk 0:02:35.5]} 13... Qe8 {[%clk 0:02:01.6]} 14.
Rae1 {[%clk 0:02:28.8]} 14... Rb8 {[%clk 0:01:49.7]} 15. dxe5 {[%clk 0:02:16.5]}
15... dxe5 {[%clk 0:01:46.5]} 16. Bc5 {[%clk 0:02:12.4]} 16... Be6 {[%clk
0:01:42.7]} 17. Qc2 {[%clk 0:01:54.2]} 17... Rg8 {[%clk 0:01:33.1]} 18. f4
{[%clk 0:01:53]} 18... Bf5 {[%clk 0:01:24]} 19. Be4 {[%clk 0:01:49.5]} 19... Bh3
{[%clk 0:01:15]} 20. Rf2 {[%clk 0:01:46.4]} 20... exf4 {[%clk 0:01:14.5]} 21.
Nxf4 {[%clk 0:01:43]} 21... Bf5 {[%clk 0:00:58.1]} 22. Rfe2 {[%clk 0:01:36]}
22... Bxe4 {[%clk 0:00:47]} 23. Rxe4 {[%clk 0:01:37.9]} 23... Qf7 {[%clk
0:00:27.6]} 24. Ne6 {[%clk 0:01:36.9]} 24... Qf5 {[%clk 0:00:27.5]} 25. Qf2
{[%clk 0:01:24.3]} 25... Qxf2+ {[%clk 0:00:18.7]} 26. Bxf2 {[%clk 0:01:26.2]}
26... Rbc8 {[%clk 0:00:20.2]} 27. Nxg7 {[%clk 0:01:15.4]} 27... Kxg7 {[%clk
0:00:20.7]} 28. b4 {[%clk 0:01:16.8]} 28... a6 {[%clk 0:00:21.3]} 29. a4 {[%clk
0:01:17.5]} 29... b5 {[%clk 0:00:16.4]} 30. Re6 {[%clk 0:01:16.4]} 30... Nb8
{[%clk 0:00:05.9]} 31. Bd4+ {[%clk 0:01:16.7]} 31... Kh6 {[%clk 0:00:03.8]} 32.
a5 {[%clk 0:01:11.4]} 1-0

[Event "***Titled Tuesday 3|2 Blitz"]
[Site "Chess.com"]
[Date "2017.02.07"]
[Round "9"]
[White "Generalas"]
[Black "latigre"]
[Result "1-0"]
[WhiteElo "2185"]
[BlackElo "1751"]
[TimeControl "180+2"]
[EndTime "15:13:51 PST"]
[Termination "Generalas won on time"]

1. e4 {[%clk 0:03:02]} 1... e5 {[%clk 0:02:59.5]} 2. Nf3 {[%clk 0:03:02.3]} 2...
Nc6 {[%clk 0:03:00.9]} 3. Bc4 {[%clk 0:03:01.4]} 3... Bc5 {[%clk 0:03:00.2]} 4.
c3 {[%clk 0:03:02]} 4... Nf6 {[%clk 0:02:57.5]} 5. d3 {[%clk 0:03:02.8]} 5... d6
{[%clk 0:02:40.6]} 6. a4 {[%clk 0:02:56.2]} 6... a6 {[%clk 0:02:37.3]} 7. O-O
{[%clk 0:02:56.4]} 7... O-O {[%clk 0:02:37]} 8. b4 {[%clk 0:02:49.8]} 8... Ba7
{[%clk 0:02:36.5]} 9. Be3 {[%clk 0:02:50.8]} 9... Bb8 {[%clk 0:02:35.9]} 10. h3
{[%clk 0:02:49.9]} 10... Qe7 {[%clk 0:02:36.3]} 11. Qb3 {[%clk 0:02:49]} 11...
Nd8 {[%clk 0:02:36.3]} 12. b5 {[%clk 0:02:47]} 12... axb5 {[%clk 0:02:34.6]} 13.
Bxb5 {[%clk 0:02:45.2]} 13... c6 {[%clk 0:01:55.5]} 14. Bc4 {[%clk 0:02:44.6]}
14... b5 {[%clk 0:01:55.9]} 15. Bxb5 {[%clk 0:02:31.3]} 15... cxb5 {[%clk
0:01:55.4]} 16. Qxb5 {[%clk 0:02:33.2]} 16... Ba6 {[%clk 0:01:46.7]} 17. Qb4
{[%clk 0:02:07.2]} 17... Bxd3 {[%clk 0:01:45.3]} 18. Rd1 {[%clk 0:02:07.2]}
18... Bxe4 {[%clk 0:01:42.1]} 19. Nbd2 {[%clk 0:01:56.1]} 19... Nd5 {[%clk
0:01:10.2]} 20. Qxe4 {[%clk 0:01:54]} 20... Nxc3 {[%clk 0:01:05.1]} 21. Qxa8
{[%clk 0:01:53.4]} 21... Nxd1 {[%clk 0:01:05.5]} 22. Rxd1 {[%clk 0:01:53.6]}
22... Bc7 {[%clk 0:00:58.3]} 23. Qd5 {[%clk 0:01:45.4]} 23... Ne6 {[%clk
0:00:52.3]} 24. a5 {[%clk 0:01:44.9]} 24... Nd4 {[%clk 0:00:14.4]} 25. Bxd4
{[%clk 0:01:33.9]} 25... exd4 {[%clk 0:00:15.2]} 26. Nxd4 {[%clk 0:01:30.2]}
26... Qf6 {[%clk 0:00:14.1]} 27. Nc4 {[%clk 0:01:24.6]} 27... Re8 {[%clk
0:00:10.3]} 28. a6 {[%clk 0:01:24]} 28... Bb8 {[%clk 0:00:08]} 29. Nc6 {[%clk
0:01:20.9]} 29... Bc7 {[%clk 0:00:05.4]} 30. a7 {[%clk 0:01:19.7]} 30... Qf4
{[%clk 0:00:03.8]} 31. Nb8 {[%clk 0:01:03.4]} 31... Bxb8 {[%clk 0:00:03]} 32.
a8=Q {[%clk 0:01:04.1]} 32... h6 {[%clk 0:00:02.1]} 33. g3 {[%clk 0:00:46.6]}
1-0

[Event "***Titled Tuesday 3|2 Blitz"]
[Site "Chess.com"]
[Date "2017.02.07"]
[Round "9"]
[White "aa175"]
[Black "Wolverine_master"]
[Result "0-1"]
[WhiteElo "1906"]
[BlackElo "1980"]
[TimeControl "180+2"]
[EndTime "15:13:56 PST"]
[Termination "Wolverine_master won by checkmate"]

1. e4 {[%clk 0:03:02]} 1... c5 {[%clk 0:02:59.5]} 2. Nf3 {[%clk 0:03:01.5]} 2...
d6 {[%clk 0:02:59.7]} 3. d4 {[%clk 0:03:02]} 3... cxd4 {[%clk 0:03:01.6]} 4.
Nxd4 {[%clk 0:03:02.9]} 4... Nf6 {[%clk 0:03:03]} 5. Nc3 {[%clk 0:03:03.5]} 5...
a6 {[%clk 0:03:03.5]} 6. Be3 {[%clk 0:03:04.3]} 6... e5 {[%clk 0:03:03.7]} 7.
Nb3 {[%clk 0:03:05.1]} 7... Be7 {[%clk 0:03:04.7]} 8. Be2 {[%clk 0:03:05.6]}
8... O-O {[%clk 0:03:05.1]} 9. Qd2 {[%clk 0:03:06.2]} 9... Be6 {[%clk
0:03:05.7]} 10. O-O-O {[%clk 0:03:04.8]} 10... Qc7 {[%clk 0:03:06]} 11. f3
{[%clk 0:03:04.5]} 11... Rc8 {[%clk 0:03:05.6]} 12. g4 {[%clk 0:03:04.2]} 12...
d5 {[%clk 0:03:06.2]} 13. exd5 {[%clk 0:03:00.4]} 13... Nxd5 {[%clk 0:03:06.2]}
14. Nxd5 {[%clk 0:03:00.2]} 14... Bxd5 {[%clk 0:03:06.4]} 15. Kb1 {[%clk
0:02:42.4]} 15... a5 {[%clk 0:02:59.7]} 16. Qxd5 {[%clk 0:02:40.6]} 16... Qxc2+
{[%clk 0:02:59.3]} 17. Ka1 {[%clk 0:02:41.5]} 17... Qxe2 {[%clk 0:02:58.9]} 18.
Qxb7 {[%clk 0:02:41.9]} 18... Nc6 {[%clk 0:02:40.3]} 19. Rc1 {[%clk 0:02:19.1]}
19... Qxe3 {[%clk 0:02:04.5]} 20. Rxc6 {[%clk 0:02:15.3]} 20... Re8 {[%clk
0:02:04.5]} 21. Rhc1 {[%clk 0:02:06.8]} 21... Qxf3 {[%clk 0:01:58.3]} 22. Qd7
{[%clk 0:01:35.4]} 22... a4 {[%clk 0:01:39.3]} 23. Rc8 {[%clk 0:01:10.7]} 23...
Raxc8 {[%clk 0:01:31.9]} 24. Rxc8 {[%clk 0:01:08]} 24... Rxc8 {[%clk 0:01:31.3]}
25. Qxc8+ {[%clk 0:01:08.1]} 25... Bf8 {[%clk 0:01:33.2]} 26. Nc1 {[%clk
0:01:00.7]} 26... e4 {[%clk 0:01:21.6]} 27. Qc4 {[%clk 0:00:50.9]} 27... a3
{[%clk 0:01:20.8]} 28. bxa3 {[%clk 0:00:48.8]} 28... Bxa3 {[%clk 0:01:20.4]} 29.
Qb3 {[%clk 0:00:46.5]} 29... Bf8 {[%clk 0:01:22.3]} 30. Qxf3 {[%clk 0:00:42.7]}
30... exf3 {[%clk 0:01:22.4]} 31. Nd3 {[%clk 0:00:43.6]} 31... Bc5 {[%clk
0:01:17.9]} 32. a4 {[%clk 0:00:40.8]} 32... f2 {[%clk 0:01:17.5]} 33. Nxf2
{[%clk 0:00:40.5]} 33... Bxf2 {[%clk 0:01:17.8]} 34. a5 {[%clk 0:00:42.4]} 34...
f6 {[%clk 0:01:18.4]} 35. Kb2 {[%clk 0:00:42.9]} 35... Kf7 {[%clk 0:01:19.3]}
36. Kc3 {[%clk 0:00:43.8]} 36... Kg6 {[%clk 0:01:20.4]} 37. Kd2 {[%clk
0:00:43.2]} 37... Kg5 {[%clk 0:01:20.7]} 38. Ke2 {[%clk 0:00:44.2]} 38... Ba7
{[%clk 0:01:21.1]} 39. Kf3 {[%clk 0:00:44.8]} 39... Kh4 {[%clk 0:01:21.9]} 40.
a6 {[%clk 0:00:41.7]} 40... Kh3 {[%clk 0:01:22.1]} 41. Kf4 {[%clk 0:00:42.1]}
41... Kxh2 {[%clk 0:01:22.6]} 42. g5 {[%clk 0:00:44]} 42... fxg5+ {[%clk
0:01:23.2]} 43. Kxg5 {[%clk 0:00:44.3]} 43... Kg3 {[%clk 0:01:24.1]} 44. Kh5
{[%clk 0:00:44.4]} 44... Kf4 {[%clk 0:01:23.3]} 45. Kh4 {[%clk 0:00:44.1]} 45...
g6 {[%clk 0:01:22.2]} 46. Kh3 {[%clk 0:00:43.7]} 46... g5 {[%clk 0:01:24.1]} 47.
Kh2 {[%clk 0:00:43.5]} 47... h5 {[%clk 0:01:26]} 48. Kh3 {[%clk 0:00:44.4]}
48... g4+ {[%clk 0:01:27.9]} 49. Kh4 {[%clk 0:00:45]} 49... g3 {[%clk
0:01:28.5]} 50. Kh3 {[%clk 0:00:46.3]} 50... Kf3 {[%clk 0:01:28.1]} 51. Kh4
{[%clk 0:00:48.2]} 51... g2 {[%clk 0:01:28.6]} 52. Kxh5 {[%clk 0:00:50.1]} 52...
g1=Q {[%clk 0:01:29.8]} 53. Kh6 {[%clk 0:00:51.6]} 53... Kf4 {[%clk 0:01:28.7]}
54. Kh7 {[%clk 0:00:53.5]} 54... Kf5 {[%clk 0:01:29.4]} 55. Kh8 {[%clk
0:00:55.4]} 55... Kf6 {[%clk 0:01:30.5]} 56. Kh7 {[%clk 0:00:57.3]} 56... Qg7#
{[%clk 0:01:30.9]} 0-1

[Event "***Titled Tuesday 3|2 Blitz"]
[Site "Chess.com"]
[Date "2017.02.07"]
[Round "9"]
[White "Cecile_Haussernot"]
[Black "NoWuss2"]
[Result "1-0"]
[WhiteElo "2258"]
[BlackElo "2035"]
[TimeControl "180+2"]
[EndTime "15:13:56 PST"]
[Termination "Cecile_Haussernot won by resignation"]

1. e4 {[%clk 0:02:54.1]} 1... Nc6 {[%clk 0:03:00.8]} 2. Nf3 {[%clk 0:02:54]}
2... d6 {[%clk 0:03:01.9]} 3. d4 {[%clk 0:02:55.1]} 3... Nf6 {[%clk 0:03:03.1]}
4. Nc3 {[%clk 0:02:56.6]} 4... g6 {[%clk 0:03:04.5]} 5. Bd3 {[%clk 0:02:52.3]}
5... Bg7 {[%clk 0:03:04.2]} 6. h3 {[%clk 0:02:53.9]} 6... O-O {[%clk 0:03:03.7]}
7. Be3 {[%clk 0:02:55.5]} 7... a6 {[%clk 0:02:50.6]} 8. O-O {[%clk 0:02:50.5]}
8... Nb4 {[%clk 0:02:09.2]} 9. Be2 {[%clk 0:02:43.6]} 9... d5 {[%clk 0:01:58.5]}
10. e5 {[%clk 0:02:41.7]} 10... Ne4 {[%clk 0:01:51.1]} 11. Nxe4 {[%clk
0:02:35.4]} 11... dxe4 {[%clk 0:01:53]} 12. Nd2 {[%clk 0:02:35.8]} 12... Bf5
{[%clk 0:01:39.1]} 13. g4 {[%clk 0:02:35.5]} 13... Bc8 {[%clk 0:01:36.5]} 14.
Nxe4 {[%clk 0:02:36.8]} 14... Nd5 {[%clk 0:01:34]} 15. Qd2 {[%clk 0:02:33.4]}
15... Nxe3 {[%clk 0:01:30.9]} 16. Qxe3 {[%clk 0:02:34.1]} 16... b6 {[%clk
0:01:28]} 17. Bf3 {[%clk 0:02:21.1]} 17... Rb8 {[%clk 0:01:28.8]} 18. c4 {[%clk
0:02:20.2]} 18... h6 {[%clk 0:01:24.5]} 19. Bg2 {[%clk 0:02:18.4]} 19... Bb7
{[%clk 0:01:16.9]} 20. f4 {[%clk 0:02:19]} 20... f5 {[%clk 0:01:09.2]} 21. Ng3
{[%clk 0:02:16.4]} 21... Bxg2 {[%clk 0:01:09]} 22. Kxg2 {[%clk 0:02:17.2]} 22...
e6 {[%clk 0:01:01.6]} 23. Rad1 {[%clk 0:02:16.3]} 23... b5 {[%clk 0:01:01.5]}
24. d5 {[%clk 0:02:15.9]} 24... bxc4 {[%clk 0:01:00.1]} 25. dxe6 {[%clk
0:02:03.9]} 25... Rxb2+ {[%clk 0:01:00.8]} 26. Kg1 {[%clk 0:02:01.3]} 26... Qa8
{[%clk 0:00:52.4]} 27. Rd2 {[%clk 0:02:00.5]} 27... Rxd2 {[%clk 0:00:37.3]} 28.
Qxd2 {[%clk 0:02:01]} 28... Rd8 {[%clk 0:00:36.7]} 29. Qe3 {[%clk 0:01:48.2]}
29... Rd3 {[%clk 0:00:36.3]} 30. Qf2 {[%clk 0:01:48.8]} 30... Qd5 {[%clk
0:00:21.5]} 31. e7 {[%clk 0:01:40.3]} 31... Kf7 {[%clk 0:00:22.5]} 32. gxf5
{[%clk 0:01:41.6]} 32... Rd2 {[%clk 0:00:22.5]} 33. fxg6+ {[%clk 0:01:41.4]}
33... Kxe7 {[%clk 0:00:22.4]} 34. Nf5+ {[%clk 0:01:42]} 34... Kf8 {[%clk
0:00:18.9]} 35. Qg3 {[%clk 0:01:38.9]} 35... Qc5+ {[%clk 0:00:17.9]} 36. Rf2
{[%clk 0:01:14.7]} 36... c3 {[%clk 0:00:18.4]} 37. Ne3 {[%clk 0:01:06.6]} 37...
c2 {[%clk 0:00:11.1]} 38. Nxc2 {[%clk 0:01:07.4]} 38... Qxc2 {[%clk 0:00:11.4]}
39. Qa3+ {[%clk 0:01:07]} 39... Kg8 {[%clk 0:00:11]} 40. Rxd2 {[%clk 0:01:06.8]}
40... Qxd2 {[%clk 0:00:11.4]} 41. Qb3+ {[%clk 0:01:08.4]} 41... Kh8 {[%clk
0:00:08.7]} 42. Qb8+ {[%clk 0:01:09.8]} 1-0

[Event "***Titled Tuesday 3|2 Blitz"]
[Site "Chess.com"]
[Date "2017.02.07"]
[Round "9"]
[White "Grebeniuk-S"]
[Black "Vrolijk"]
[Result "1-0"]
[WhiteElo "2432"]
[BlackElo "2297"]
[TimeControl "180+2"]
[EndTime "15:14:02 PST"]
[Termination "Grebeniuk-S won by resignation"]

1. d4 {[%clk 0:03:02]} 1... Nf6 {[%clk 0:03:00.7]} 2. Nf3 {[%clk 0:03:03.4]}
2... g6 {[%clk 0:03:01.4]} 3. Bg5 {[%clk 0:03:04.7]} 3... Bg7 {[%clk 0:03:02]}
4. Nbd2 {[%clk 0:03:06.2]} 4... d5 {[%clk 0:03:01]} 5. e3 {[%clk 0:03:06.1]}
5... O-O {[%clk 0:03:00.9]} 6. c4 {[%clk 0:03:05.4]} 6... c6 {[%clk 0:02:57.1]}
7. cxd5 {[%clk 0:03:06.3]} 7... cxd5 {[%clk 0:02:58.2]} 8. Bd3 {[%clk
0:03:04.8]} 8... Nc6 {[%clk 0:02:59.5]} 9. O-O {[%clk 0:03:05.8]} 9... b6 {[%clk
0:02:59.7]} 10. Rc1 {[%clk 0:03:06.6]} 10... Nb4 {[%clk 0:03:00.4]} 11. Bb1
{[%clk 0:02:57.7]} 11... Ba6 {[%clk 0:02:59.3]} 12. Re1 {[%clk 0:02:56.7]} 12...
Nd3 {[%clk 0:02:56.3]} 13. Bxd3 {[%clk 0:02:57]} 13... Bxd3 {[%clk 0:02:58.2]}
14. Ne5 {[%clk 0:02:56.9]} 14... Bb5 {[%clk 0:02:54.9]} 15. Qb3 {[%clk
0:02:56.1]} 15... Qe8 {[%clk 0:02:47.1]} 16. Bxf6 {[%clk 0:02:33.4]} 16... exf6
{[%clk 0:02:43.1]} 17. Nef3 {[%clk 0:02:34.1]} 17... Rd8 {[%clk 0:02:42.6]} 18.
Rc7 {[%clk 0:02:33.7]} 18... a6 {[%clk 0:02:28.7]} 19. Rec1 {[%clk 0:02:19.7]}
19... Rd6 {[%clk 0:02:25.4]} 20. Qb4 {[%clk 0:02:14.1]} 20... Re6 {[%clk
0:02:24.6]} 21. b3 {[%clk 0:02:09]} 21... Bh6 {[%clk 0:02:02.6]} 22. a4 {[%clk
0:02:05.8]} 22... Be2 {[%clk 0:02:02.1]} 23. Re1 {[%clk 0:01:49.4]} 23... Bd3
{[%clk 0:01:53.7]} 24. Qc3 {[%clk 0:01:42.4]} 24... Be4 {[%clk 0:01:44.4]} 25.
Nxe4 {[%clk 0:01:39.9]} 25... dxe4 {[%clk 0:01:41.5]} 26. Nd2 {[%clk 0:01:40.6]}
26... f5 {[%clk 0:01:43]} 27. g3 {[%clk 0:01:35.6]} 27... g5 {[%clk 0:01:36.9]}
28. Nc4 {[%clk 0:01:17.5]} 28... f4 {[%clk 0:01:36.7]} 29. Ne5 {[%clk
0:01:17.8]} 29... Bg7 {[%clk 0:01:33.4]} 30. Nd7 {[%clk 0:01:13]} 30... fxg3
{[%clk 0:01:29]} 31. fxg3 {[%clk 0:01:13]} 31... h5 {[%clk 0:01:09.6]} 32. Nxf8
{[%clk 0:01:12.3]} 32... Bxf8 {[%clk 0:01:11.5]} 33. Rf1 {[%clk 0:01:09.4]}
33... h4 {[%clk 0:01:07.9]} 34. Rfxf7 {[%clk 0:01:03.1]} 34... hxg3 {[%clk
0:01:09.1]} 35. hxg3 {[%clk 0:00:58.5]} 35... Qxf7 {[%clk 0:01:08.5]} 36. Rxf7
{[%clk 0:01:00.4]} 36... Kxf7 {[%clk 0:01:10.4]} 37. Qc7+ {[%clk 0:00:51.9]}
37... Be7 {[%clk 0:01:08.3]} 38. Qb7 {[%clk 0:00:48.8]} 38... a5 {[%clk
0:01:07.1]} 39. Kg2 {[%clk 0:00:50]} 39... g4 {[%clk 0:01:06.1]} 40. Qd5 {[%clk
0:00:50.1]} 40... Kf6 {[%clk 0:01:05]} 41. Qh5 {[%clk 0:00:50.1]} 41... Bb4
{[%clk 0:01:03]} 42. Qxg4 {[%clk 0:00:49.7]} 42... Ke7 {[%clk 0:01:03.5]} 43. d5
{[%clk 0:00:47.9]} 43... Re5 {[%clk 0:01:03.9]} 44. Qg8 {[%clk 0:00:46.5]} 44...
Kd6 {[%clk 0:01:00.5]} 45. Qd8+ {[%clk 0:00:41.4]} 45... Kc5 {[%clk 0:01:01.6]}
46. d6 {[%clk 0:00:40.4]} 1-0

[Event "***Titled Tuesday 3|2 Blitz"]
[Site "Chess.com"]
[Date "2017.02.07"]
[Round "9"]
[White "AndrewDGreen"]
[Black "popov_m"]
[Result "0-1"]
[WhiteElo "2172"]
[BlackElo "2357"]
[TimeControl "180+2"]
[EndTime "15:14:10 PST"]
[Termination "popov_m won by resignation"]

1. d4 {[%clk 0:03:02]} 1... Nf6 {[%clk 0:02:59.6]} 2. Nf3 {[%clk 0:03:02.9]}
2... g6 {[%clk 0:03:00.7]} 3. Nc3 {[%clk 0:03:03.8]} 3... Bg7 {[%clk 0:02:58.3]}
4. e4 {[%clk 0:03:04.7]} 4... d6 {[%clk 0:02:59.7]} 5. Be3 {[%clk 0:03:06.2]}
5... a6 {[%clk 0:02:48.1]} 6. Qd2 {[%clk 0:03:05.8]} 6... b5 {[%clk 0:02:46]} 7.
Bh6 {[%clk 0:02:52.8]} 7... O-O {[%clk 0:02:21.2]} 8. Bxg7 {[%clk 0:02:52.6]}
8... Kxg7 {[%clk 0:02:23.1]} 9. Bd3 {[%clk 0:02:53.7]} 9... Bb7 {[%clk
0:02:22.8]} 10. h4 {[%clk 0:02:42.4]} 10... h5 {[%clk 0:01:41.5]} 11. e5 {[%clk
0:02:42]} 11... Ng4 {[%clk 0:01:41.1]} 12. Qg5 {[%clk 0:02:09.8]} 12... e6
{[%clk 0:01:33.6]} 13. Qf4 {[%clk 0:02:09.6]} 13... b4 {[%clk 0:00:52.3]} 14.
Ne4 {[%clk 0:02:08.2]} 14... Bxe4 {[%clk 0:00:53.5]} 15. Bxe4 {[%clk 0:02:04]}
15... d5 {[%clk 0:00:54.8]} 16. Bd3 {[%clk 0:02:03.9]} 16... Nd7 {[%clk
0:00:53.6]} 17. Ng5 {[%clk 0:01:59.4]} 17... c5 {[%clk 0:00:51.4]} 18. c3 {[%clk
0:01:56.2]} 18... c4 {[%clk 0:00:48.9]} 19. Bc2 {[%clk 0:01:38.5]} 19... Qa5
{[%clk 0:00:43.4]} 20. Qg3 {[%clk 0:01:20.9]} 20... bxc3 {[%clk 0:00:36]} 21.
bxc3 {[%clk 0:01:19]} 21... Rab8 {[%clk 0:00:37.1]} 22. O-O {[%clk 0:01:15.3]}
22... Rb2 {[%clk 0:00:37.8]} 23. Rac1 {[%clk 0:01:04.1]} 23... Qxa2 {[%clk
0:00:22.8]} 24. Bb1 {[%clk 0:01:05.3]} 24... Qa3 {[%clk 0:00:21.2]} 25. f3
{[%clk 0:01:03.5]} 25... Ne3 {[%clk 0:00:22.5]} 26. Nxe6+ {[%clk 0:01:03]} 26...
Kg8 {[%clk 0:00:23.2]} 27. Rf2 {[%clk 0:00:47.5]} 27... Rxf2 {[%clk 0:00:23.4]}
28. Kxf2 {[%clk 0:00:44.5]} 28... Qxc1 {[%clk 0:00:22.2]} 29. Bxg6 {[%clk
0:00:38.5]} 29... Ng4+ {[%clk 0:00:22.5]} 30. fxg4 {[%clk 0:00:36.4]} 30...
fxe6+ {[%clk 0:00:23.7]} 31. Bf5 {[%clk 0:00:35.2]} 31... Qh6 {[%clk 0:00:15.6]}
32. Kg1 {[%clk 0:00:26.5]} 32... exf5 {[%clk 0:00:16.8]} 33. gxf5+ {[%clk
0:00:27.1]} 33... Kh8 {[%clk 0:00:18.3]} 34. f6 {[%clk 0:00:25.4]} 34... Nxf6
{[%clk 0:00:19]} 35. exf6 {[%clk 0:00:25.1]} 35... Qxf6 {[%clk 0:00:20.9]} 36.
Qc7 {[%clk 0:00:23.9]} 36... Qf1+ {[%clk 0:00:21.7]} 0-1